bitfinex/quotes_ETHUSD_20250806
["timestamp","ask_amount","ask_price","bid_price","bid_amount"]
[1754459808718,2.211,3638.5,3638.4,7.60717875]
[1754459809297,1e-08,3638.5,3638.4,13.92945768]
[1754459809990,1e-08,3638.5,3638.4,11.32675768]
[1754459810186,1e-08,3638.5,3638.4,7.07687875]
[1754459810888,1e-08,3638.5,3638.4,7.46957875]
[1754459811387,1e-08,3638.5,3638.4,7.07687875]
[1754459814300,1e-08,3638.5,3638.4,11.32675768]
[1754459814785,1e-08,3638.5,3638.4,10.70995768]
[1754459815492,1e-08,3638.5,3638.4,11.32675768]
[1754459815717,1e-08,3638.5,3638.4,7.07687875]
[1754459816514,30.00000001,3638.5,3638.4,3.46007875]
[1754459816710,0.44030001,3638.5,3638.4,3.46007875]
[1754459819338,0.44030001,3638.5,3638.4,3.59767875]
[1754459819498,31.06850001,3638.5,3638.2,0.002]
[1754459819696,31.06850001,3638.5,3638.3,2.74848568]
[1754459819697,30.0,3638.4,3638.3,2.74848568]
[1754459819930,33.2765,3638.4,3638.3,2.74848568]
[1754459820130,33.2765,3638.4,3638.3,2.88608568]
[1754459821347,33.2765,3638.4,3638.2,2.75059787]
[1754459821498,30.0,3638.3,3638.2,2.75059787]
[1754459821698,31.0685,3638.3,3638.2,2.75059787]
[1754459822147,31.0685,3638.3,3638.2,0.002]
[1754459822820,31.0685,3638.3,3638.2,2.75061195]
[1754459823193,31.0685,3638.3,3638.2,0.002]
[1754459824055,31.0685,3638.3,3638.2,2.75061195]
[1754459824948,30.0,3638.3,3638.2,2.75061195]
[1754459825148,1e-08,3638.5,3638.4,2.74846086]
[1754459825348,2.20700001,3638.5,3638.4,2.74846086]
[1754459825506,2.20700001,3638.5,3638.4,3.36526086]
[1754459825714,1e-08,3638.5,3638.4,3.50286086]
[1754459826014,1e-08,3638.5,3638.4,4.58169014]
[1754459826015,2.20700001,3638.5,3638.4,4.58169014]
[1754459826406,2.20700001,3638.5,3638.4,4.18899014]
[1754459826744,2.20700001,3638.5,3638.4,3.57219014]
[1754459827307,2.20700001,3638.5,3638.4,2.88606086]
[1754459827507,32.20700001,3638.5,3638.4,2.88606086]
[1754459827707,30.00000001,3638.5,3638.4,2.88606086]
[1754459827908,2.64730001,3638.5,3638.4,2.88606086]
[1754459828344,32.64730001,3638.5,3638.4,2.88606086]
[1754459828717,33.27550001,3638.5,3638.4,2.88606086]
[1754459829142,33.27550001,3638.5,3638.3,2.74847476]
[1754459829467,2.20700001,3638.5,3638.4,0.002]
[1754459829741,32.20700001,3638.5,3638.4,0.002]
[1754459829905,33.27550001,3638.5,3638.4,0.002]
[1754459831420,36.02388533,3638.5,3638.4,0.002]
[1754459832947,39.57388533,3638.5,3638.4,0.002]
[1754459833341,31.61850001,3638.5,3638.4,0.002]
[1754459833563,33.82450001,3638.5,3638.4,0.002]
[1754459835161,36.57288533,3638.5,3638.4,0.002]
[1754459835946,36.68298533,3638.5,3638.4,0.002]
[1754459836149,31.17860001,3638.5,3638.4,0.002]
[1754459836362,32.34260001,3638.5,3638.4,0.002]
[1754459836572,32.79430001,3638.5,3638.4,0.002]
[1754459836875,32.34260001,3638.5,3638.4,0.002]
[1754459837436,32.79430001,3638.5,3638.4,0.002]
[1754459837681,30.13760001,3638.5,3638.4,0.002]
[1754459837832,32.34260001,3638.5,3638.4,0.002]
[1754459838347,32.34260001,3638.5,3638.4,2.75046086]
[1754459838544,30.00000001,3638.5,3638.4,2.75046086]
[1754459838757,2.20500001,3638.5,3638.4,2.75046086]
[1754459839071,30.00000001,3638.5,3638.4,2.75046086]
[1754459839232,32.20500001,3638.5,3638.4,2.75046086]
[1754459841132,30.00000001,3638.5,3638.4,3.32886086]
[1754459841333,2.20500001,3638.5,3638.4,4.07840665]
[1754459841584,2.20500001,3638.5,3638.4,4.47110665]
[1754459842878,1e-08,3638.5,3638.4,7.47110665]
[1754459843255,1e-08,3638.5,3638.4,10.22510665]
[1754459844505,1e-08,3638.5,3638.4,7.07840665]
[1754459845349,1e-08,3638.5,3638.4,6.50000665]
[1754459845555,1e-08,3638.5,3638.4,7.07840665]
[1754459845758,30.00000001,3638.5,3638.4,7.07840665]
[1754459845960,1e-08,3638.5,3638.4,7.07840665]
[1754459847487,30.00000001,3638.5,3638.4,7.07840665]
[1754459847686,1e-08,3638.5,3638.4,7.07840665]
[1754459848394,30.00000001,3638.5,3638.4,7.07840665]
[1754459848593,1e-08,3638.5,3638.4,11.32828558]
[1754459848797,1e-08,3638.5,3638.4,10.13793979]
[1754459849264,32.20300001,3638.5,3638.4,7.13793979]
[1754459849711,1e-08,3638.5,3638.4,11.10903979]
[1754459850557,2.203,3639.1,3639.0,2.74800769]
[1754459850756,2.203,3639.1,3639.0,10.13548662]
[1754459851091,0.001,3639.6,3639.2,5.74785667]
[1754459851487,0.001,3639.6,3639.2,5.88545667]
[1754459851685,0.001,3639.6,3639.2,6.85655667]
[1754459852218,0.001,3639.6,3639.5,2.74763016]
[1754459852379,0.001,3639.9,3639.8,5.7474037]
[1754459852709,0.001,3639.9,3639.8,7.00925695]
[1754459853085,0.001,3639.9,3639.8,7.58765695]
[1754459853671,0.001,3639.9,3639.8,7.98035695]
[1754459854308,0.001,3639.9,3639.8,7.58765695]
[1754459854713,0.001,3639.9,3639.8,7.98035695]
[1754459855576,0.001,3639.9,3639.8,7.58765695]
[1754459856227,0.001,3640.1,3640.0,2.74725274]
[1754459856390,1e-08,3640.1,3640.0,5.74725274]
[1754459856581,1e-08,3640.1,3640.0,6.46325274]
[1754459857238,0.001,3640.5,3640.4,5.74695088]
[1754459857526,0.001,3640.8,3640.7,5.74672453]
[1754459857984,0.001,3640.8,3640.7,5.88432453]
[1754459858597,31.0252,3640.8,3640.7,2.88432453]
[1754459859003,30.4527,3640.8,3640.7,2.88432453]
[1754459859203,31.0252,3640.8,3640.7,2.88432453]
[1754459859428,1.0252,3640.8,3640.7,2.88432453]
[1754459859726,0.4527,3640.8,3640.7,2.88432453]
[1754459859892,0.001,3640.8,3640.7,2.88432453]
[1754459860387,0.001,3640.8,3640.7,4.02584453]
[1754459860800,0.001,3640.8,3640.7,3.91571177]
[1754459861139,0.001,3640.8,3640.7,4.02584453]
[1754459863228,0.04,3640.9,3640.8,5.74664908]
[1754459863439,0.04,3640.9,3640.8,6.32404908]
[1754459863643,0.04,3640.9,3640.8,7.21838598]
[1754459864305,1e-08,3640.9,3640.8,7.79578598]
[1754459864613,1.045,3641.7,3641.6,2.74604569]
[1754459864929,1.045,3641.7,3641.6,2.88364569]
[1754459865234,1.045,3642.0,3641.8,2.74589488]
[1754459865451,36.583,3641.9,3641.8,2.74589488]
[1754459866002,33.284,3641.9,3641.8,2.74589488]
[1754459866198,33.284,3641.9,3641.8,2.88349488]
[1754459870641,31.085,3641.9,3641.8,2.88349488]
[1754459870858,32.238,3641.9,3641.8,2.88349488]
[1754459871063,30.04,3641.9,3641.8,2.88349488]
[1754459871252,32.237,3641.9,3641.8,2.88349488]
[1754459871626,32.7016,3641.9,3641.8,2.88349488]
[1754459872166,32.237,3641.9,3641.8,2.88349488]
[1754459872369,0.041,3641.9,3641.8,7.08158894]
[1754459872686,0.041,3641.9,3641.8,6.50418894]
[1754459872834,1.086,3641.9,3641.8,5.88349488]
[1754459873171,1.086,3641.9,3641.8,2.88349488]
[1754459873375,31.086,3641.9,3641.8,2.88349488]
[1754459876370,33.282,3641.9,3641.8,2.88349488]
[1754459876736,33.282,3641.9,3641.8,0.1376]
[1754459876938,33.282,3641.9,3641.5,2.74605427]
[1754459877161,33.282,3641.9,3641.7,2.74597028]
[1754459877162,30.0,3641.8,3641.7,2.74597028]
[1754459877472,31.045,3641.8,3641.7,2.74597028]
[1754459880054,30.0,3641.7,3641.6,2.74601799]
[1754459880262,31.045,3641.7,3640.9,3.0]
[1754459880585,33.241,3641.6,3641.5,2.7461211]
[1754459880784,33.24,3641.6,3641.5,2.7461211]
[1754459880938,33.24,3641.6,3641.3,0.1376]
[1754459881145,30.0,3641.3,3641.2,2.74634735]
[1754459881372,30.0,3641.2,3641.1,2.88402278]
[1754459881585,2.195,3641.3,3641.2,2.74634735]
[1754459881765,32.195,3641.3,3641.2,2.74634735]
[1754459882279,33.24,3641.3,3641.2,2.74634735]
[1754459882657,3.24,3641.3,3641.2,2.74634735]
[1754459882858,33.24,3641.3,3641.2,2.74634735]
[1754459883062,3.24,3641.3,3641.2,2.74634735]
[1754459883396,33.24,3641.3,3641.2,2.74634735]
[1754459883595,3.24,3641.3,3641.2,2.74634735]
[1754459883798,3.24,3641.3,3641.1,2.88401019]
[1754459884002,31.045,3641.2,3641.1,2.88401019]
[1754459884202,31.045,3641.2,3641.1,0.1376]
[1754459884403,31.045,3641.2,3640.8,2.74658864]
[1754459884605,30.0,3640.8,3640.5,0.1376]
[1754459884773,2.195,3640.7,3640.6,2.74673766]
[1754459884978,30.0,3640.6,3640.5,2.88446435]
[1754459885190,2.195,3640.7,3640.6,2.74679997]
[1754459885393,32.195,3640.7,3640.6,2.74679997]
[1754459885789,33.24,3640.7,3640.6,2.74679997]
[1754459887621,32.195,3640.7,3640.6,2.74679997]
[1754459888101,33.24,3640.7,3640.6,2.74679997]
[1754459888620,32.6596,3640.7,3640.6,2.74679997]
[1754459888978,30.4646,3640.7,3640.6,2.74679997]
[1754459889209,30.0,3640.7,3640.6,4.02493412]
[1754459889406,30.0,3641.1,3641.0,2.74649821]
[1754459889730,0.1376,3641.2,3641.1,2.74642278]
[1754459889881,30.718,3641.2,3641.1,2.74642278]
[1754459890078,30.5804,3641.2,3641.1,2.74642278]
[1754459890281,33.239,3641.2,3641.1,2.74642278]
[1754459892496,32.6586,3641.2,3641.1,2.74642278]
[1754459893521,33.2679,3641.2,3641.1,2.74642278]
[1754459894823,30.0,3641.2,3641.1,2.74642278]
[1754459895024,32.193,3641.2,3641.1,2.74642278]
[1754459895426,32.6379,3641.2,3641.1,2.74642278]
[1754459896113,32.193,3641.2,3641.1,2.74642278]
[1754459896291,32.193,3641.2,3641.1,8.6834417]
[1754459896494,0.001,3641.3,3641.2,2.74634735]
[1754459896828,2.194,3641.3,3641.2,2.74634735]
[1754459897648,33.2482,3641.3,3641.2,2.74634735]
[1754459898237,32.194,3641.3,3641.2,2.74634735]
[1754459898633,32.6389,3641.3,3641.2,2.74634735]
[1754459898808,33.2482,3641.3,3641.2,2.74634735]
[1754459899008,32.6389,3641.3,3641.2,2.74634735]
[1754459899417,2.6389,3641.3,3641.2,2.74634735]
[1754459899844,32.6389,3641.3,3641.2,2.74634735]
[1754459900651,33.2482,3641.3,3641.2,2.74634735]
[1754459901156,33.2482,3641.3,3641.1,4.24987893]
[1754459901323,30.0,3641.2,3641.1,4.24987893]
[1754459901664,30.0,3641.2,3641.0,2.74848529]
[1754459901665,31.0542,3641.2,3641.0,0.002]
[1754459901817,33.2452,3641.1,3641.0,0.002]
[1754459902017,33.2452,3641.1,3641.0,2.74849821]
[1754459902842,32.6359,3641.1,3641.0,2.74849821]
[1754459904858,32.191,3641.1,3641.0,2.74849821]
[1754459906029,30.0,3641.1,3641.0,2.74849821]
[1754459906266,2.191,3641.1,3641.0,3.30979821]
[1754459906558,32.191,3641.1,3641.0,3.30979821]
[1754459907639,32.191,3641.1,3641.0,7.55967714]
[1754459909363,32.191,3641.1,3641.0,6.99837714]
[1754459909566,32.6359,3641.1,3641.0,6.99837714]
[1754459910284,32.191,3641.1,3641.0,6.99837714]
[1754459910650,32.191,3641.1,3641.0,7.55967714]
[1754459910651,2.191,3641.1,3641.0,7.55967714]
[1754459910847,0.001,3641.3,3641.0,7.55967714]
[1754459910848,0.001,3641.3,3641.2,2.74634735]
[1754459911078,32.19,3641.3,3641.2,2.74634735]
[1754459911280,32.19,3641.3,3641.2,3.44524735]
[1754459912388,30.001,3641.3,3641.2,2.88394735]
[1754459912576,32.19,3641.3,3641.2,2.88394735]
[1754459912779,32.6349,3641.3,3641.2,2.74634735]
[1754459912955,33.2442,3641.3,3641.2,2.74634735]
[1754459913694,32.19,3641.3,3641.2,6.99622628]
[1754459915257,30.001,3641.3,3641.2,5.74634735]
[1754459915481,32.189,3641.3,3641.2,5.74634735]
[1754459916789,2.6339,3641.3,3641.2,5.74634735]
[1754459916996,2.6339,3641.3,3641.2,2.74634735]
[1754459917209,33.2432,3641.3,3641.2,2.74634735]
[1754459917915,30.0,3641.2,3641.1,2.74641317]
[1754459918064,30.4449,3641.2,3641.1,2.74641317]
[1754459918412,31.0542,3641.2,3641.0,2.8860832]
[1754459918712,33.2422,3641.1,3641.0,0.002]
[1754459918996,33.3798,3641.1,3641.0,0.002]
[1754459921371,59.22551097,3641.1,3641.0,0.002]
[1754459921610,33.3798,3641.1,3641.0,0.002]
[1754459922677,36.12622278,3641.1,3641.0,0.002]
[1754459923508,33.3798,3641.1,3641.0,0.002]
[1754459924018,36.12622278,3641.1,3641.0,0.002]
[1754459924413,33.3798,3641.1,3641.0,0.002]
[1754459924920,31.1918,3641.1,3641.0,0.002]
[1754459925124,33.3788,3641.1,3641.0,0.002]
[1754459928115,36.12522278,3641.1,3641.0,0.002]
[1754459928691,30.1376,3641.1,3641.0,0.002]
[1754459928891,33.3524,3641.1,3641.0,0.002]
[1754459929094,32.3236,3641.1,3641.0,0.575]
[1754459929425,32.3236,3641.1,3641.0,0.002]
[1754459929634,32.3236,3641.1,3641.0,3.32149821]
[1754459929941,32.3236,3641.1,3641.0,0.575]
[1754459930104,30.1376,3641.1,3641.0,3.32149821]
[1754459930291,32.185,3641.1,3641.0,3.32149821]
[1754459930499,30.0,3641.1,3641.0,3.94207245]
[1754459930698,2.185,3641.1,3641.0,3.94207245]
[1754459930898,32.185,3641.1,3641.0,4.47237245]
[1754459931113,2.185,3641.1,3641.0,4.47237245]
[1754459931931,2.185,3641.1,3641.0,4.07967245]
[1754459935002,0.001,3641.3,3641.2,2.74634735]
[1754459935198,32.185,3641.3,3641.2,2.74634735]
[1754459935504,32.185,3641.3,3641.0,2.74848142]
[1754459935505,33.3514,3641.3,3641.0,2.74848142]
[1754459935837,31.0288,3641.2,3641.0,0.002]
[1754459936002,30.0,3641.1,3641.0,0.002]
[1754459936333,30.0,3641.1,3641.0,2.74849821]
[1754459936541,30.0,3641.2,3641.1,2.74642278]
[1754459937718,30.0,3641.2,3641.0,3.32147235]
[1754459937901,2.184,3641.1,3641.0,3.32147235]
[1754459938103,32.184,3641.1,3641.0,2.74847235]
[1754459939230,32.184,3641.1,3641.0,3.32147235]
[1754459939429,32.184,3641.1,3641.0,2.74847235]
[1754459939826,30.0,3641.1,3641.0,2.74847235]
[1754459940029,30.0,3641.2,3641.1,2.74642278]
[1754459940215,0.001,3641.3,3641.2,2.88394735]
[1754459940420,32.184,3641.3,3641.2,3.45694735]
[1754459941309,30.001,3641.3,3641.2,3.45694735]
[1754459941649,32.184,3641.3,3641.2,3.45694735]
[1754459943023,32.184,3641.3,3641.2,2.88394735]
[1754459943213,32.6458,3641.3,3641.2,2.88394735]
[1754459943810,33.2128,3641.3,3641.2,2.88394735]
[1754459944320,33.2128,3641.3,3641.1,6.99627532]
[1754459944659,2.184,3641.3,3641.2,2.74634735]
[1754459944838,32.184,3641.3,3641.2,2.74634735]
[1754459945438,32.184,3641.3,3641.2,2.88394735]
[1754459945640,32.184,3641.3,3641.2,3.45694735]
[1754459946037,32.184,3641.3,3641.2,2.88394735]
[1754459946349,33.2128,3641.3,3641.0,3.002]
[1754459946550,30.0,3641.2,3641.1,2.74642278]
[1754459947055,30.0,3641.2,3641.1,3.45702278]
[1754459947350,2.184,3641.3,3641.2,2.74634735]
[1754459947653,30.001,3641.3,3641.2,2.74634735]
[1754459947820,32.182,3641.3,3641.2,3.93988436]
[1754459948013,32.182,3641.3,3641.2,6.93988436]
[1754459948317,2.182,3641.3,3641.2,6.93988436]
[1754459949229,32.182,3641.3,3641.2,6.93988436]
[1754459949644,32.182,3641.3,3641.2,5.74634735]
[1754459950352,33.2108,3641.3,3641.2,5.74634735]
[1754459950519,33.2108,3641.3,3641.2,2.74634735]
[1754459950850,32.6438,3641.3,3641.2,2.74634735]
[1754459951030,32.182,3641.3,3641.2,2.74634735]
[1754459951647,32.182,3641.3,3641.0,2.74847663]
[1754459951648,33.3484,3641.3,3641.0,2.74847663]
[1754459951825,30.0,3641.2,3641.0,2.74847663]
[1754459952031,2.18,3641.1,3641.0,2.74847663]
[1754459952271,33.2088,3641.1,3641.0,0.002]
[1754459953765,33.3464,3641.1,3641.0,0.002]
[1754459954058,33.314,3641.1,3641.0,0.002]
[1754459954434,3.314,3641.1,3641.0,0.002]
[1754459954841,33.314,3641.1,3641.0,0.002]
[1754459955036,36.06042278,3641.1,3641.0,0.002]
[1754459956967,33.314,3641.1,3641.0,0.002]
[1754459957330,36.06042278,3641.1,3641.0,0.002]
[1754459958138,32.3176,3641.1,3641.0,0.002]
[1754459958364,32.7733,3641.1,3641.0,0.002]
[1754459958783,33.314,3641.1,3641.0,0.002]
[1754459960032,36.06042278,3641.1,3641.0,0.002]
[1754459960251,33.314,3641.1,3641.0,0.002]
[1754459961080,36.06042278,3641.1,3641.0,0.002]
[1754459961271,33.314,3641.1,3641.0,0.002]
[1754459961857,31.134,3641.1,3641.0,0.002]
[1754459962042,30.1376,3641.1,3641.0,3.28799821]
[1754459962238,32.178,3641.1,3641.0,4.28416226]
[1754459962441,32.178,3641.1,3641.0,4.02906226]
[1754459962679,0.001,3641.3,3641.2,2.74634735]
[1754459962857,32.179,3641.3,3641.2,2.74634735]
[1754459963245,32.179,3641.3,3641.2,3.28584735]
[1754459963992,30.001,3641.3,3641.2,2.74634735]
[1754459964149,32.179,3641.3,3641.2,2.74634735]
[1754459965059,32.178,3641.3,3641.2,2.74634735]
[1754459966566,32.178,3641.3,3641.2,3.28584735]
[1754459967782,32.178,3641.3,3641.2,2.74634735]
[1754459968677,32.178,3641.3,3641.2,3.28584735]
[1754459969596,32.178,3641.3,3641.2,3.42344735]
[1754459970596,32.178,3641.3,3641.2,2.88394735]
[1754459970796,32.6337,3641.3,3641.2,2.74634735]
[1754459971354,32.178,3641.3,3641.2,2.74634735]
[1754459971553,33.1744,3641.3,3641.2,2.74634735]
[1754459972445,33.1744,3641.3,3641.1,2.88399594]
[1754459972677,30.9964,3641.2,3641.1,2.74642278]
[1754459972845,30.9964,3641.2,3641.0,2.88608611]
[1754459973182,32.6317,3641.1,3641.0,2.74848611]
[1754459973585,33.1724,3641.1,3641.0,0.002]
[1754459974680,32.6317,3641.1,3641.0,2.74849821]
[1754459976585,32.6317,3641.1,3641.0,0.002]
[1754459976787,32.7693,3641.1,3641.0,0.002]
[1754459976948,33.31,3641.1,3641.0,0.002]
[1754459986192,32.7693,3641.1,3641.0,0.002]
[1754459986487,32.3136,3641.1,3641.0,0.002]
[1754459986928,32.3136,3641.1,3641.0,2.74849821]
[1754459987705,32.3136,3641.1,3641.0,0.002]
[1754459988892,0.9758,3641.3,3641.2,2.74634735]
[1754459988893,0.001,3641.3,3641.2,2.74634735]
[1754459989230,2.173,3641.3,3641.2,4.1906688]
[1754459989930,32.173,3641.3,3641.2,4.1906688]
[1754459990074,30.001,3641.3,3641.2,3.31014735]
[1754459990473,32.173,3641.3,3641.0,0.1396]
[1754459990709,30.9748,3641.2,3641.0,0.002]
[1754459990903,32.172,3641.1,3641.0,2.74848716]
[1754459991234,32.172,3641.1,3641.0,3.31228716]
[1754459991511,32.172,3641.1,3641.0,2.74848716]
[1754459992076,32.172,3641.1,3641.0,3.31228716]
[1754459993478,32.172,3641.1,3641.0,2.74848716]
[1754459993929,32.172,3641.1,3641.0,3.31228716]
[1754459995004,2.172,3641.1,3641.0,3.31228716]
[1754459995325,32.172,3641.1,3641.0,3.31228716]
[1754459995531,32.172,3641.1,3641.0,2.74848716]
[1754459995868,32.172,3641.1,3641.0,3.31228716]
[1754459997448,30.0,3641.1,3641.0,3.31228716]
[1754459997744,2.17,3641.1,3641.0,3.93193988]
[1754459997951,32.17,3641.1,3641.0,3.93193988]
[1754459998888,32.17,3641.1,3641.0,3.36813988]
[1754459999092,30.0,3641.1,3641.0,3.93193988]
[1754459999344,2.17,3641.1,3641.0,4.32463988]
[1754459999549,32.17,3641.1,3641.0,4.32463988]
[1754459999833,2.17,3641.1,3641.0,4.32463988]
[1754460000191,0.001,3641.3,3641.2,2.74634735]
[1754460000391,0.001,3641.3,3641.2,6.91965744]
[1754460000690,0.001,3641.7,3641.6,5.74604569]
[1754460000691,1e-08,3641.7,3641.6,5.74604569]
[1754460000948,1e-08,3641.7,3641.6,28.98293388]
[1754460001226,1e-08,3641.7,3641.6,29.93943388]
[1754460001997,0.001,3642.3,3642.2,2.74559332]
[1754460002305,1e-08,3642.4,3642.3,2.74551794]
[1754460002511,0.9748,3642.3,3642.2,0.1376]
[1754460002740,0.9748,3642.3,3641.5,3.0]
[1754460002741,30.9748,3642.3,3642.1,2.74560829]
[1754460002917,32.169,3642.2,3642.0,2.88328598]
[1754460003117,30.0,3642.1,3642.0,2.88328598]
[1754460003517,2.6979,3642.2,3642.1,2.7456687]
[1754460003714,32.6979,3642.2,3642.1,2.7456687]
[1754460003929,32.6979,3642.2,3642.0,0.1376]
[1754460004243,30.9748,3642.1,3642.0,0.1376]
[1754460004474,30.9748,3642.1,3642.0,2.74574409]
[1754460004740,30.9748,3642.1,3641.9,2.74580422]
[1754460004903,30.9748,3642.0,3641.9,2.74580422]
[1754460005709,30.4459,3642.0,3641.9,2.74580422]
[1754460005909,30.0,3642.0,3641.9,2.74580422]
[1754460006114,30.0,3642.1,3642.0,2.74574409]
[1754460006320,30.0,3642.1,3641.8,2.88349172]
[1754460006548,30.0,3642.1,3641.9,2.74581948]
[1754460006549,2.168,3642.0,3641.9,2.74581948]
[1754460006855,32.168,3642.0,3641.9,2.74581948]
[1754460007159,32.6139,3642.0,3641.9,2.74581948]
[1754460007452,33.1428,3642.0,3641.9,2.74581948]
[1754460007654,30.0,3642.0,3641.9,2.74581948]
[1754460007855,30.0,3642.3,3642.2,2.74559332]
[1754460008028,1e-08,3642.4,3642.3,2.74551794]
[1754460008216,1e-08,3642.4,3642.3,3.30931794]
[1754460008552,1e-08,3642.4,3642.3,3.44691794]
[1754460008741,2.16700001,3642.4,3642.3,3.83961794]
[1754460009053,32.16700001,3642.4,3642.3,2.88311794]
[1754460010115,32.61290001,3642.4,3642.3,2.88311794]
[1754460010314,32.16700001,3642.4,3642.3,2.74551794]
[1754460011359,30.00000001,3642.4,3642.3,2.74551794]
[1754460011560,2.16700001,3642.4,3642.3,3.30931794]
[1754460012057,32.16600001,3642.4,3642.3,3.91481079]
[1754460012361,32.16600001,3642.4,3642.3,3.35101079]
[1754460012526,32.16600001,3642.4,3642.3,2.74551794]
[1754460013073,33.17210001,3642.4,3642.3,2.74551794]
[1754460013836,32.16600001,3642.4,3642.3,2.74551794]
[1754460014174,30.00000001,3642.4,3642.3,3.27211794]
[1754460014466,2.16600001,3642.4,3642.3,3.27211794]
[1754460014667,2.16600001,3642.4,3642.3,2.74551794]
[1754460014876,32.16600001,3642.4,3642.3,2.74551794]
[1754460015067,30.00000001,3642.4,3642.3,3.27211794]
[1754460015254,2.16600001,3642.4,3642.3,3.87389079]
[1754460015670,32.16600001,3642.4,3642.3,3.87389079]
[1754460016044,2.16600001,3642.4,3642.3,3.87389079]
[1754460016246,2.16600001,3642.4,3642.3,3.34729079]
[1754460016459,2.16600001,3642.4,3642.3,2.74551794]
[1754460016460,3.17210001,3642.4,3642.3,2.74551794]
[1754460016844,32.60410001,3642.4,3642.3,2.74551794]
[1754460017091,32.60410001,3642.4,3642.3,6.99539687]
[1754460017441,32.60410001,3642.4,3642.3,4.24987893]
[1754460017642,33.17210001,3642.4,3642.3,4.24987893]
[1754460018192,2.74551794,3642.3,3641.0,0.002]
[1754460018488,2.165,3642.2,3641.1,2.74642278]
[1754460018788,30.0,3642.1,3641.7,2.74591865]
[1754460018953,2.165,3642.0,3641.8,2.74588617]
[1754460019137,30.0,3641.9,3641.7,2.74596045]
[1754460019332,30.0,3641.9,3641.8,2.74589488]
[1754460019855,1.0061,3641.9,3641.8,2.74589488]
[1754460020061,31.0061,3641.9,3641.7,2.74594601]
[1754460020268,33.1711,3641.8,3641.4,2.7461919]
[1754460020567,31.0061,3641.7,3641.4,2.8837919]
[1754460020767,32.165,3641.6,3641.5,2.7460962]
[1754460021507,32.165,3641.6,3641.5,2.7480962]
[1754460021861,3.1711,3641.6,3641.5,0.002]
[1754460022764,33.1711,3641.6,3641.5,0.002]
[1754460023209,35.91714569,3641.6,3641.5,0.002]
[1754460023416,59.01643388,3641.6,3641.5,0.002]
[1754460025520,35.91714569,3641.6,3641.5,0.002]
[1754460025817,33.1711,3641.6,3641.5,0.002]
[1754460026181,35.91714569,3641.6,3641.5,0.002]
[1754460028017,5.91714569,3641.6,3641.5,0.002]
[1754460028225,35.91714569,3641.6,3641.5,0.002]
[1754460028872,33.1711,3641.6,3641.5,0.002]
[1754460029484,35.91714569,3641.6,3641.5,0.002]
[1754460031212,36.46714569,3641.6,3641.5,0.002]
[1754460031829,59.56643388,3641.6,3641.5,0.002]
[1754460033077,29.56643388,3641.6,3641.5,0.002]
[1754460033275,59.56643388,3641.6,3641.5,0.002]
[1754460036107,36.05174569,3641.6,3641.5,0.002]
[1754460036310,33.8557,3641.6,3641.5,0.002]
[1754460036776,36.60174569,3641.6,3641.5,0.002]
[1754460037175,39.60174569,3641.6,3641.5,0.002]
[1754460039117,39.71175569,3641.6,3641.5,0.002]
[1754460041238,39.60174569,3641.6,3641.5,0.002]
[1754460044160,39.60174569,3641.6,3640.6,0.002]
[1754460044161,0.55,3639.3,3638.9,0.5217]
[1754460044330,32.711,3639.2,3638.9,0.5217]
[1754460044658,32.711,3639.2,3639.1,0.5617]
[1754460044863,35.45885667,3639.2,3639.1,0.5617]
[1754460045059,34.90885667,3639.2,3639.1,0.5617]
[1754460045355,32.161,3639.2,3639.1,0.5617]
[1754460045656,32.161,3639.2,3639.1,0.9584]
[1754460045857,32.161,3639.2,3639.1,0.04]
[1754460046059,35.92885667,3639.2,3639.1,0.04]
[1754460046369,39.71327136,3639.2,3639.1,0.04]
[1754460046663,39.71327136,3639.2,3638.2,0.002]
[1754460046664,29.3973714,3638.9,3638.3,0.5217]
[1754460046868,29.3973714,3638.9,3638.2,0.3987]
[1754460046869,30.25601469,3638.9,3638.2,0.3987]
[1754460047068,32.41701469,3638.9,3638.8,0.5237]
[1754460047363,35.1650979,3638.9,3638.8,0.5237]
[1754460047665,36.7134979,3638.9,3638.8,0.002]
[1754460047875,3.29838532,3638.5,3638.2,0.002]
[1754460048041,31.81369361,3638.5,3638.2,0.002]
[1754460048364,62.81209361,3638.5,3638.2,0.002]
[1754460049348,33.8060201,3638.5,3638.2,0.002]
[1754460049560,35.4170201,3638.5,3638.2,0.002]
[1754460049769,35.9670201,3638.5,3638.4,0.5237]
[1754460049950,35.161,3638.5,3638.4,0.5237]
[1754460050347,35.161,3638.5,3638.2,0.002]
[1754460050547,0.55,3638.3,3638.2,0.002]
[1754460050735,35.4595364,3638.3,3638.2,0.002]
[1754460050940,36.4579364,3638.3,3638.2,0.002]
[1754460052173,33.7094,3638.3,3638.2,0.002]
[1754460052765,32.711,3638.3,3638.2,0.002]
[1754460052942,32.161,3638.3,3638.2,0.5237]
[1754460053777,32.161,3638.3,3638.2,0.9204]
[1754460054137,32.2986,3638.3,3638.2,0.9204]
[1754460054338,30.1376,3638.3,3638.2,0.9204]
[1754460054540,32.2986,3638.3,3638.2,0.9204]
[1754460055174,32.2986,3638.3,3638.2,0.002]
[1754460055560,32.2986,3638.3,3638.2,3.27231195]
[1754460056081,32.2986,3638.3,3638.2,0.5237]
[1754460056575,32.2986,3638.3,3638.2,0.002]
[1754460057143,32.8486,3638.3,3638.2,0.002]
[1754460057384,33.847,3638.3,3638.2,0.002]
[1754460057675,32.8486,3638.3,3638.2,0.002]
[1754460057888,32.8476,3638.3,3638.2,0.002]
[1754460058055,33.846,3638.3,3638.2,0.002]
[1754460058387,33.846,3638.3,3638.1,0.042]